[Event "November 21 Early 2023"]
[Site "https://www.chess.com"]
[Date "2023.11.21"]
[Round "6"]
[White "Pumpkin_in_moonlight"]
[Black "BM223344"]
[Result "0-1"]
[Board "147"]
[TimeControl "180+1"]
[WhiteElo "2303"]
[BlackElo "2484"]
[WhiteClock "0:00:00"]
[BlackClock "0:01:40"]

1. e4 {[%clk 0:03:00]}  e6 {[%clk 0:02:59]} 2. d4 {[%clk 0:02:58]}  d5 {[%clk 0:02:59]} 3. Nc3 {[%clk 0:02:20]}  Nf6 {[%clk 0:02:58]} 4. e5 {[%clk 0:02:13]}  Nfd7 {[%clk 0:02:57]} 5. f4 {[%clk 0:02:10]}  c5 {[%clk 0:02:58]} 6. Nf3 {[%clk 0:02:10]}  a6 {[%clk 0:02:58]} 7. Be3 {[%clk 0:02:07]}  Nc6 {[%clk 0:02:58]} 8. Qd2 {[%clk 0:02:05]}  b5 {[%clk 0:02:58]} 9. a3 {[%clk 0:02:05]}  Bb7 {[%clk 0:02:57]} 10. h3 {[%clk 0:01:51]}  Qb6 {[%clk 0:02:56]} 11. g4 {[%clk 0:01:46]}  h5 {[%clk 0:02:54]} 12. Bg2 {[%clk 0:01:37]}  cxd4 {[%clk 0:02:50]} 13. Nxd4 {[%clk 0:01:30]}  Nxd4 {[%clk 0:02:50]} 14. Bxd4 {[%clk 0:01:28]}  Bc5 {[%clk 0:02:51]} 15. Ne2 {[%clk 0:01:23]}  hxg4 {[%clk 0:02:47]} 16. hxg4 {[%clk 0:01:21]}  Rxh1+ {[%clk 0:02:44]} 17. Bxh1 {[%clk 0:01:21]}  O-O-O {[%clk 0:02:44]} 18. O-O-O {[%clk 0:01:20]}  Kb8 {[%clk 0:02:42]} 19. f5 {[%clk 0:01:17]}  Bxd4 {[%clk 0:02:39]} 20. Nxd4 {[%clk 0:01:15]}  Nxe5 {[%clk 0:02:37]} 21. fxe6 {[%clk 0:01:11]}  fxe6 {[%clk 0:02:36]} 22. Qf4 {[%clk 0:01:07]}  Qd6 {[%clk 0:02:33]} 23. Kb1 {[%clk 0:00:57]}  Nc4 {[%clk 0:02:01]} 24. Qxd6+ {[%clk 0:00:56]}  Rxd6 {[%clk 0:02:01]} 25. Re1 {[%clk 0:00:48]}  e5 {[%clk 0:01:57]} 26. Nf5 {[%clk 0:00:44]}  Rg6 {[%clk 0:01:56]} 27. b3 {[%clk 0:00:21]}  Nd2+ {[%clk 0:01:49]} 28. Kc1 {[%clk 0:00:19]}  Ne4 {[%clk 0:01:50]} 29. Bxe4 {[%clk 0:00:12]}  dxe4 {[%clk 0:01:51]} 30. Ne3 {[%clk 0:00:12]}  Bc8 {[%clk 0:01:49]} 31. Rd1 {[%clk 0:00:09]}  Bxg4 {[%clk 0:01:46]} 32. Rd8+ {[%clk 0:00:09]}  Kc7 {[%clk 0:01:46]} 33. Re8 {[%clk 0:00:07]}  Bd7 {[%clk 0:01:39]} 34. Rxe5 {[%clk 0:00:05]}  Re6 {[%clk 0:01:39]} 35. Rg5 {[%clk 0:00:04]}  g6 {[%clk 0:01:40]} 36. Kb2 {[%clk 0:00:02]}  Kd6 {[%clk 0:01:39]} 37. Kc3 {[%clk 0:00:02]}  Ke7 {[%clk 0:01:39]} 38. Kd4 {[%clk 0:00:00]}  Kf6 {[%clk 0:01:40]} 0-1

[Event "November 21 Early 2023"]
[Site "https://www.chess.com"]
[Date "2023.11.21"]
[Round "6"]
[White "Cardozo Munar, Carlos Eduardo"]
[Black "Pinero Rodriguez, Carlos Jose"]
[Result "0-1"]
[Board "148"]
[TimeControl "180+1"]
[WhiteFideId "4409477"]
[BlackFideId "3901726"]
[WhiteElo "2067"]
[BlackElo "2191"]
[WhiteTeam "COL"]
[BlackTeam "VEN"]
[WhiteClock "0:00:00"]
[BlackClock "0:00:54"]

1. d4 {[%clk 0:03:00]}  Nf6 {[%clk 0:02:59]} 2. Bg5 {[%clk 0:03:00]}  Ne4 {[%clk 0:02:59]} 3. h4 {[%clk 0:02:59]}  c5 {[%clk 0:02:58]} 4. d5 {[%clk 0:02:59]}  Qb6 {[%clk 0:02:57]} 5. Nd2 {[%clk 0:02:58]}  Nxd2 {[%clk 0:02:51]} 6. Bxd2 {[%clk 0:02:44]}  Qxb2 {[%clk 0:02:43]} 7. e4 {[%clk 0:02:43]}  d6 {[%clk 0:02:41]} 8. Nf3 {[%clk 0:02:42]}  e5 {[%clk 0:02:23]} 9. Bc4 {[%clk 0:02:13]}  Qa3 {[%clk 0:02:09]} 10. Kf1 {[%clk 0:01:35]}  a6 {[%clk 0:02:06]} 11. Bc1 {[%clk 0:01:33]}  Qa4 {[%clk 0:02:05]} 12. Qe2 {[%clk 0:00:36]}  Bg4 {[%clk 0:01:58]} 13. Bb3 {[%clk 0:00:30]}  Qd7 {[%clk 0:01:56]} 14. c4 {[%clk 0:00:30]}  Be7 {[%clk 0:01:50]} 15. a4 {[%clk 0:00:31]}  b6 {[%clk 0:01:45]} 16. Bg5 {[%clk 0:00:30]}  f6 {[%clk 0:01:44]} 17. Be3 {[%clk 0:00:30]}  O-O {[%clk 0:01:38]} 18. h5 {[%clk 0:00:29]}  Qc7 {[%clk 0:01:34]} 19. Rh4 {[%clk 0:00:27]}  f5 {[%clk 0:01:26]} 20. Rxg4 {[%clk 0:00:13]}  fxg4 {[%clk 0:01:25]} 21. Nh2 {[%clk 0:00:14]}  g3 {[%clk 0:01:22]} 22. Nf3 {[%clk 0:00:13]}  gxf2 {[%clk 0:01:21]} 23. Kxf2 {[%clk 0:00:14]}  Nd7 {[%clk 0:01:21]} 24. Rh1 {[%clk 0:00:14]}  Nf6 {[%clk 0:01:20]} 25. h6 {[%clk 0:00:14]}  Nxe4+ {[%clk 0:01:14]} 26. Kg1 {[%clk 0:00:13]}  Ng3 {[%clk 0:01:14]} 27. Qd3 {[%clk 0:00:09]}  Nxh1 {[%clk 0:01:12]} 28. Kxh1 {[%clk 0:00:07]}  g6 {[%clk 0:01:10]} 29. Bg5 {[%clk 0:00:04]}  Qd8 {[%clk 0:01:01]} 30. Be3 {[%clk 0:00:03]}  Qd7 {[%clk 0:00:58]} 31. Bc2 {[%clk 0:00:01]}  Qg4 {[%clk 0:00:55]} 32. Kg1 {[%clk 0:00:00]}  Rxf3 {[%clk 0:00:54]} 0-1

[Event "November 21 Early 2023"]
[Site "https://www.chess.com"]
[Date "2023.11.21"]
[Round "6"]
[White "Minina, Veronika"]
[Black "Ramla2020"]
[Result "0-1"]
[Board "149"]
[TimeControl "180+1"]
[WhiteFideId "4174780"]
[WhiteElo "1905"]
[BlackElo "2466"]
[WhiteTeam "RUS"]
[WhiteClock "0:00:01"]
[BlackClock "0:00:16"]

1. Nf3 {[%clk 0:03:00]}  d5 {[%clk 0:02:59]} 2. g3 {[%clk 0:02:56]}  Nf6 {[%clk 0:02:58]} 3. Bg2 {[%clk 0:02:53]}  c6 {[%clk 0:02:57]} 4. c4 {[%clk 0:02:53]}  Bf5 {[%clk 0:02:56]} 5. O-O {[%clk 0:02:41]}  e6 {[%clk 0:02:53]} 6. cxd5 {[%clk 0:02:37]}  exd5 {[%clk 0:02:51]} 7. d3 {[%clk 0:02:38]}  Be7 {[%clk 0:02:47]} 8. Nh4 {[%clk 0:02:19]}  Bg4 {[%clk 0:02:46]} 9. h3 {[%clk 0:02:19]}  Bh5 {[%clk 0:02:46]} 10. g4 {[%clk 0:02:17]}  Nfd7 {[%clk 0:02:37]} 11. Nf5 {[%clk 0:02:15]}  Bg6 {[%clk 0:02:35]} 12. Nxg7+ {[%clk 0:02:07]}  Kf8 {[%clk 0:02:35]} 13. Bh6 {[%clk 0:02:07]}  Kg8 {[%clk 0:02:34]} 14. e4 {[%clk 0:02:02]}  Bf6 {[%clk 0:02:30]} 15. Nf5 {[%clk 0:01:55]}  Bxb2 {[%clk 0:02:17]} 16. Nd2 {[%clk 0:01:49]}  Bxf5 {[%clk 0:01:46]} 17. gxf5 {[%clk 0:01:42]}  Qh4 {[%clk 0:01:46]} 18. Rb1 {[%clk 0:01:10]}  Bf6 {[%clk 0:01:15]} 19. Be3 {[%clk 0:00:58]}  d4 {[%clk 0:01:14]} 20. Nf3 {[%clk 0:00:58]}  Qh5 {[%clk 0:01:09]} 21. Nxd4 {[%clk 0:00:58]}  Qxd1 {[%clk 0:01:08]} 22. Rfxd1 {[%clk 0:00:59]}  b6 {[%clk 0:01:01]} 23. f4 {[%clk 0:00:54]}  Na6 {[%clk 0:00:56]} 24. e5 {[%clk 0:00:54]}  Be7 {[%clk 0:00:55]} 25. Nxc6 {[%clk 0:00:54]}  Bc5 {[%clk 0:00:54]} 26. d4 {[%clk 0:00:53]}  Bf8 {[%clk 0:00:52]} 27. e6 {[%clk 0:00:48]}  fxe6 {[%clk 0:00:47]} 28. fxe6 {[%clk 0:00:49]}  Nf6 {[%clk 0:00:47]} 29. Ne7+ {[%clk 0:00:46]}  Bxe7 {[%clk 0:00:47]} 30. Bxa8 {[%clk 0:00:47]}  Kg7 {[%clk 0:00:46]} 31. Bb7 {[%clk 0:00:46]}  Nb4 {[%clk 0:00:46]} 32. d5 {[%clk 0:00:44]}  Rd8 {[%clk 0:00:41]} 33. Bd4 {[%clk 0:00:38]}  Kg6 {[%clk 0:00:37]} 34. Be5 {[%clk 0:00:33]}  Nbxd5 {[%clk 0:00:29]} 35. Rbc1 {[%clk 0:00:29]}  Bc5+ {[%clk 0:00:27]} 36. Kh2 {[%clk 0:00:27]}  Kf5 {[%clk 0:00:26]} 37. Bxf6 {[%clk 0:00:24]}  Rf8 {[%clk 0:00:15]} 38. Rxd5+ {[%clk 0:00:23]}  Kxf6 {[%clk 0:00:14]} 39. Rd7 {[%clk 0:00:21]}  Kxe6 {[%clk 0:00:12]} 40. Rcd1 {[%clk 0:00:21]}  Rxf4 {[%clk 0:00:12]} 41. Bc8 {[%clk 0:00:18]}  Rf2+ {[%clk 0:00:11]} 42. Kh1 {[%clk 0:00:19]}  Ke5 {[%clk 0:00:11]} 43. Re1+ {[%clk 0:00:18]}  Kf6 {[%clk 0:00:11]} 44. Rd8 {[%clk 0:00:16]}  Rxa2 {[%clk 0:00:10]} 45. Rh8 {[%clk 0:00:11]}  Kg7 {[%clk 0:00:10]} 46. Rhe8 {[%clk 0:00:11]}  Rf2 {[%clk 0:00:09]} 47. Bd7 {[%clk 0:00:09]}  a5 {[%clk 0:00:09]} 48. Rg1+ {[%clk 0:00:09]}  Kf6 {[%clk 0:00:07]} 49. Re6+ {[%clk 0:00:09]}  Kf7 {[%clk 0:00:07]} 50. Re4 {[%clk 0:00:08]}  Rf3 {[%clk 0:00:04]} 51. Rgg4 {[%clk 0:00:06]}  Bd6 {[%clk 0:00:03]} 52. Be6+ {[%clk 0:00:05]}  Kf6 {[%clk 0:00:03]} 53. Bd5 {[%clk 0:00:05]}  Rxh3+ {[%clk 0:00:02]} 54. Kg2 {[%clk 0:00:05]}  Rd3 {[%clk 0:00:02]} 55. Re2 {[%clk 0:00:05]}  Rxd5 {[%clk 0:00:02]} 56. Rf2+ {[%clk 0:00:05]}  Rf5 {[%clk 0:00:03]} 57. Rxf5+ {[%clk 0:00:05]}  Kxf5 {[%clk 0:00:04]} 58. Ra4 {[%clk 0:00:06]}  Bc5 {[%clk 0:00:04]} 59. Ra2 {[%clk 0:00:06]}  Ke5 {[%clk 0:00:04]} 60. Re2+ {[%clk 0:00:06]}  Kd5 {[%clk 0:00:05]} 61. Rd2+ {[%clk 0:00:06]}  Kc4 {[%clk 0:00:06]} 62. Rd7 {[%clk 0:00:06]}  Kb5 {[%clk 0:00:07]} 63. Rxh7 {[%clk 0:00:07]}  a4 {[%clk 0:00:08]} 64. Kf3 {[%clk 0:00:06]}  a3 {[%clk 0:00:09]} 65. Rh2 {[%clk 0:00:06]}  Kc4 {[%clk 0:00:09]} 66. Ke4 {[%clk 0:00:06]}  Kb3 {[%clk 0:00:10]} 67. Kd3 {[%clk 0:00:07]}  a2 {[%clk 0:00:11]} 68. Rh1 {[%clk 0:00:07]}  Ba3 {[%clk 0:00:11]} 69. Rf1 {[%clk 0:00:05]}  Bb2 {[%clk 0:00:11]} 70. Ke4 {[%clk 0:00:04]}  b5 {[%clk 0:00:12]} 71. Kd5 {[%clk 0:00:03]}  a1=Q {[%clk 0:00:11]} 72. Rxa1 {[%clk 0:00:03]}  Bxa1 {[%clk 0:00:12]} 73. Kc5 {[%clk 0:00:04]}  Ka4 {[%clk 0:00:12]} 74. Kd5 {[%clk 0:00:04]}  b4 {[%clk 0:00:13]} 75. Kc4 {[%clk 0:00:05]}  b3 {[%clk 0:00:14]} 76. Kd3 {[%clk 0:00:05]}  Ka3 {[%clk 0:00:14]} 77. Kd2 {[%clk 0:00:06]}  Ka2 {[%clk 0:00:15]} 78. Kc1 {[%clk 0:00:07]}  b2+ {[%clk 0:00:15]} 79. Kc2 {[%clk 0:00:01]}  b1=Q+ {[%clk 0:00:16]} 0-1

[Event "November 21 Early 2023"]
[Site "https://www.chess.com"]
[Date "2023.11.21"]
[Round "6"]
[White "Jimenez Fernandez, Rebeca"]
[Black "Preobrazhenska_D2011"]
[Result "1/2-1/2"]
[Board "151"]
[TimeControl "180+1"]
[WhiteFideId "32070934"]
[WhiteElo "2015"]
[BlackElo "2461"]
[WhiteTeam "ESP"]
[WhiteClock "0:00:07"]
[BlackClock "0:00:06"]

1. e4 {[%clk 0:03:00]}  c5 {[%clk 0:02:59]} 2. Nc3 {[%clk 0:03:00]}  a6 {[%clk 0:02:59]} 3. g3 {[%clk 0:03:01]}  b5 {[%clk 0:02:59]} 4. Bg2 {[%clk 0:03:01]}  Bb7 {[%clk 0:02:59]} 5. d3 {[%clk 0:03:02]}  e6 {[%clk 0:02:59]} 6. Be3 {[%clk 0:03:02]}  d5 {[%clk 0:02:45]} 7. exd5 {[%clk 0:03:03]}  exd5 {[%clk 0:02:46]} 8. d4 {[%clk 0:03:04]}  c4 {[%clk 0:02:41]} 9. Nge2 {[%clk 0:02:49]}  Nf6 {[%clk 0:02:39]} 10. O-O {[%clk 0:02:48]}  Be7 {[%clk 0:02:34]} 11. Bg5 {[%clk 0:02:34]}  b4 {[%clk 0:02:22]} 12. Nb1 {[%clk 0:02:01]}  O-O {[%clk 0:02:18]} 13. c3 {[%clk 0:02:00]}  a5 {[%clk 0:02:16]} 14. Nd2 {[%clk 0:01:57]}  h6 {[%clk 0:02:16]} 15. Bxf6 {[%clk 0:01:57]}  Bxf6 {[%clk 0:02:17]} 16. Nf3 {[%clk 0:01:57]}  Nc6 {[%clk 0:02:13]} 17. Nf4 {[%clk 0:01:57]}  Qd7 {[%clk 0:01:48]} 18. Qd2 {[%clk 0:01:48]}  Rfe8 {[%clk 0:01:42]} 19. Rfe1 {[%clk 0:01:48]}  Rad8 {[%clk 0:01:29]} 20. Nh5 {[%clk 0:01:31]}  Be7 {[%clk 0:01:26]} 21. Ne5 {[%clk 0:01:28]}  Nxe5 {[%clk 0:01:26]} 22. dxe5 {[%clk 0:01:28]}  Bf8 {[%clk 0:01:11]} 23. Nf4 {[%clk 0:01:19]}  Qc8 {[%clk 0:00:40]} 24. Bh3 {[%clk 0:01:03]}  Qc6 {[%clk 0:00:31]} 25. e6 {[%clk 0:00:58]}  d4 {[%clk 0:00:20]} 26. Bg2 {[%clk 0:00:43]}  Qc7 {[%clk 0:00:17]} 27. Bxb7 {[%clk 0:00:24]}  Qxb7 {[%clk 0:00:17]} 28. cxd4 {[%clk 0:00:24]}  fxe6 {[%clk 0:00:11]} 29. Nxe6 {[%clk 0:00:24]}  Rd6 {[%clk 0:00:05]} 30. Nxf8 {[%clk 0:00:17]}  Rxf8 {[%clk 0:00:06]} 31. Qe3 {[%clk 0:00:15]}  Qf7 {[%clk 0:00:06]} 32. Rad1 {[%clk 0:00:14]}  Rd5 {[%clk 0:00:06]} 33. Qe6 {[%clk 0:00:13]}  Qxe6 {[%clk 0:00:06]} 34. Rxe6 {[%clk 0:00:14]}  Rfd8 {[%clk 0:00:07]} 35. Re4 {[%clk 0:00:12]}  Kf7 {[%clk 0:00:05]} 36. f4 {[%clk 0:00:12]}  a4 {[%clk 0:00:06]} 37. Kf2 {[%clk 0:00:11]}  b3 {[%clk 0:00:04]} 38. axb3 {[%clk 0:00:11]}  cxb3 {[%clk 0:00:04]} 39. Ke3 {[%clk 0:00:11]}  Kf6 {[%clk 0:00:03]} 40. Re5 {[%clk 0:00:11]}  R5d6 {[%clk 0:00:03]} 41. Ra5 {[%clk 0:00:11]}  Re8+ {[%clk 0:00:03]} 42. Kf3 {[%clk 0:00:11]}  Rc8 {[%clk 0:00:03]} 43. Rxa4 {[%clk 0:00:11]}  Rc2 {[%clk 0:00:04]} 44. Rb4 {[%clk 0:00:08]}  Rxb2 {[%clk 0:00:04]} 45. Rd3 {[%clk 0:00:08]}  Rxh2 {[%clk 0:00:04]} 46. Rbxb3 {[%clk 0:00:07]}  Rc2 {[%clk 0:00:04]} 47. Rb5 {[%clk 0:00:07]}  Rc1 {[%clk 0:00:03]} 48. Ke2 {[%clk 0:00:05]}  g5 {[%clk 0:00:03]} 49. fxg5+ {[%clk 0:00:04]}  hxg5 {[%clk 0:00:04]} 50. Kf3 {[%clk 0:00:04]}  Rf1+ {[%clk 0:00:04]} 51. Kg4 {[%clk 0:00:05]}  Re1 {[%clk 0:00:03]} 52. Rf3+ {[%clk 0:00:05]}  Kg6 {[%clk 0:00:03]} 53. Rxg5+ {[%clk 0:00:05]}  Kh6 {[%clk 0:00:03]} 54. Rh5+ {[%clk 0:00:05]}  Kg6 {[%clk 0:00:04]} 55. Rg5+ {[%clk 0:00:04]}  Kh6 {[%clk 0:00:04]} 56. Rf4 {[%clk 0:00:04]}  Rg1 {[%clk 0:00:03]} 57. Rh5+ {[%clk 0:00:03]}  Kg6 {[%clk 0:00:03]} 58. Rh8 {[%clk 0:00:04]}  Rd1 {[%clk 0:00:03]} 59. Rhf8 {[%clk 0:00:02]}  R1xd4 {[%clk 0:00:03]} 60. Rxd4 {[%clk 0:00:03]}  Rxd4+ {[%clk 0:00:03]} 61. Rf4 {[%clk 0:00:03]}  Rd6 {[%clk 0:00:04]} 62. Ra4 {[%clk 0:00:02]}  Rc6 {[%clk 0:00:04]} 63. Ra5 {[%clk 0:00:03]}  Rd6 {[%clk 0:00:04]} 64. Kh3 {[%clk 0:00:03]}  Rc6 {[%clk 0:00:04]} 65. g4 {[%clk 0:00:04]}  Rd6 {[%clk 0:00:05]} 66. Kg3 {[%clk 0:00:04]}  Rc6 {[%clk 0:00:05]} 67. Kf4 {[%clk 0:00:05]}  Rd6 {[%clk 0:00:04]} 68. Kg3 {[%clk 0:00:05]}  Rc6 {[%clk 0:00:05]} 69. Kf4 {[%clk 0:00:06]}  Rd6 {[%clk 0:00:05]} 70. Rg5+ {[%clk 0:00:07]}  Kf6 {[%clk 0:00:03]} 71. Rh5 {[%clk 0:00:07]}  Kg6 {[%clk 0:00:04]} 72. Rg5+ {[%clk 0:00:07]}  Kf6 {[%clk 0:00:04]} 73. Rf5+ {[%clk 0:00:06]}  Kg6 {[%clk 0:00:04]} 74. Ke5 {[%clk 0:00:07]}  Ra6 {[%clk 0:00:04]} 75. Rf1 {[%clk 0:00:06]}  Rb6 {[%clk 0:00:03]} 76. Rd1 {[%clk 0:00:05]}  Ra6 {[%clk 0:00:02]} 77. Kf4 {[%clk 0:00:05]}  Ra4+ {[%clk 0:00:02]} 78. Kg3 {[%clk 0:00:05]}  Ra6 {[%clk 0:00:03]} 79. Kh4 {[%clk 0:00:05]}  Rb6 {[%clk 0:00:03]} 80. Rd5 {[%clk 0:00:05]}  Ra6 {[%clk 0:00:04]} 81. Rg5+ {[%clk 0:00:06]}  Kf6 {[%clk 0:00:04]} 82. Rh5 {[%clk 0:00:06]}  Kg6 {[%clk 0:00:05]} 83. Rb5 {[%clk 0:00:05]}  Rc6 {[%clk 0:00:05]} 84. Kg3 {[%clk 0:00:05]}  Ra6 {[%clk 0:00:05]} 85. Kf4 {[%clk 0:00:06]}  Rc6 {[%clk 0:00:05]} 86. Ke4 {[%clk 0:00:05]}  Rc4+ {[%clk 0:00:05]} 87. Kf3 {[%clk 0:00:05]}  Rc6 {[%clk 0:00:05]} 88. Kf4 {[%clk 0:00:06]}  Rc4+ {[%clk 0:00:05]} 89. Kg3 {[%clk 0:00:06]}  Rc6 {[%clk 0:00:06]} 90. g5 {[%clk 0:00:06]}  Rc3+ {[%clk 0:00:04]} 91. Kf4 {[%clk 0:00:07]}  Rc4+ {[%clk 0:00:05]} 92. Ke3 {[%clk 0:00:07]}  Rc6 {[%clk 0:00:05]} 93. Kd4 {[%clk 0:00:07]}  Ra6 {[%clk 0:00:05]} 94. Kc5 {[%clk 0:00:06]}  Kxg5 {[%clk 0:00:04]} 95. Kb4+ {[%clk 0:00:06]}  Kf4 {[%clk 0:00:05]} 96. Rc5 {[%clk 0:00:06]}  Rb6+ {[%clk 0:00:05]} 97. Rb5 {[%clk 0:00:06]}  Rf6 {[%clk 0:00:05]} 98. Rc5 {[%clk 0:00:06]}  Rb6+ {[%clk 0:00:06]} 99. Rb5 {[%clk 0:00:06]}  Rxb5+ {[%clk 0:00:06]} 100. Kxb5 {[%clk 0:00:07]} 1/2-1/2

[Event "November 21 Early 2023"]
[Site "https://www.chess.com"]
[Date "2023.11.21"]
[Round "6"]
[White "Begunov, Konstantin"]
[Black "Witty_Alien"]
[Result "1-0"]
[Board "153"]
[TimeControl "180+1"]
[WhiteFideId "4118510"]
[WhiteElo "1989"]
[BlackElo "2287"]
[WhiteTeam "RUS"]
[WhiteClock "0:00:06"]
[BlackClock "0:00:01"]

1. d4 {[%clk 0:03:00]}  e5 {[%clk 0:02:59]} 2. dxe5 {[%clk 0:02:59]}  d6 {[%clk 0:03:00]} 3. Nf3 {[%clk 0:03:00]}  Nc6 {[%clk 0:02:59]} 4. Bg5 {[%clk 0:02:59]}  Qd7 {[%clk 0:02:44]} 5. exd6 {[%clk 0:02:54]}  Bxd6 {[%clk 0:02:40]} 6. Nc3 {[%clk 0:02:54]}  Qf5 {[%clk 0:02:39]} 7. e3 {[%clk 0:02:41]}  Nb4 {[%clk 0:02:13]} 8. Bd3 {[%clk 0:02:29]}  Nxd3+ {[%clk 0:02:10]} 9. Qxd3 {[%clk 0:02:30]}  Qg4 {[%clk 0:01:55]} 10. Qe4+ {[%clk 0:02:26]}  Ne7 {[%clk 0:01:45]} 11. O-O-O {[%clk 0:01:51]}  f6 {[%clk 0:00:58]} 12. Bh4 {[%clk 0:01:35]}  Qh5 {[%clk 0:00:45]} 13. Bg3 {[%clk 0:01:25]}  Bf5 {[%clk 0:00:39]} 14. Qh4 {[%clk 0:01:18]}  Qg6 {[%clk 0:00:15]} 15. Bxd6 {[%clk 0:01:14]}  cxd6 {[%clk 0:00:16]} 16. Qa4+ {[%clk 0:01:06]}  b5 {[%clk 0:00:14]} 17. Qxb5+ {[%clk 0:00:58]}  Bd7 {[%clk 0:00:15]} 18. Qb7 {[%clk 0:00:28]}  Rc8 {[%clk 0:00:12]} 19. Rxd6 {[%clk 0:00:22]}  Bc6 {[%clk 0:00:09]} 20. Qb4 {[%clk 0:00:16]}  Qxg2 {[%clk 0:00:08]} 21. Rg1 {[%clk 0:00:10]}  Qxf3 {[%clk 0:00:08]} 22. Rxg7 {[%clk 0:00:11]}  Qh1+ {[%clk 0:00:08]} 23. Kd2 {[%clk 0:00:10]}  Rc7 {[%clk 0:00:04]} 24. Qb8+ {[%clk 0:00:09]}  Nc8 {[%clk 0:00:03]} 25. Qxc7 {[%clk 0:00:07]}  Nxd6 {[%clk 0:00:01]} 26. Qe7# {[%clk 0:00:06]} 1-0

[Event "November 21 Early 2023"]
[Site "https://www.chess.com"]
[Date "2023.11.21"]
[Round "6"]
[White "Berezin, Viktor"]
[Black "Florianovitz, Derlei Alex"]
[Result "1/2-1/2"]
[Board "156"]
[TimeControl "180+1"]
[WhiteFideId "14107872"]
[BlackFideId "2114178"]
[WhiteElo "2310"]
[BlackElo "1953"]
[WhiteTeam "UKR"]
[BlackTeam "BRA"]
[WhiteClock "0:00:03"]
[BlackClock "0:00:02"]

1. Nf3 {[%clk 0:02:59]}  c5 {[%clk 0:02:58]} 2. g3 {[%clk 0:02:57]}  Nc6 {[%clk 0:02:58]} 3. Bg2 {[%clk 0:02:57]}  g6 {[%clk 0:02:59]} 4. O-O {[%clk 0:02:58]}  Bg7 {[%clk 0:02:59]} 5. c4 {[%clk 0:02:59]}  e5 {[%clk 0:02:59]} 6. Nc3 {[%clk 0:02:59]}  Nge7 {[%clk 0:03:00]} 7. d3 {[%clk 0:03:00]}  d6 {[%clk 0:03:00]} 8. Rb1 {[%clk 0:03:00]}  O-O {[%clk 0:03:00]} 9. a3 {[%clk 0:03:01]}  a5 {[%clk 0:03:00]} 10. Ne1 {[%clk 0:03:00]}  Be6 {[%clk 0:02:59]} 11. Nc2 {[%clk 0:03:00]}  d5 {[%clk 0:02:57]} 12. cxd5 {[%clk 0:02:57]}  Nxd5 {[%clk 0:02:58]} 13. Ne3 {[%clk 0:02:57]}  Nxe3 {[%clk 0:02:40]} 14. Bxe3 {[%clk 0:02:58]}  Nd4 {[%clk 0:02:38]} 15. Ne4 {[%clk 0:02:40]}  b6 {[%clk 0:02:25]} 16. b4 {[%clk 0:02:33]}  axb4 {[%clk 0:02:22]} 17. axb4 {[%clk 0:02:34]}  Ra2 {[%clk 0:02:20]} 18. Nc3 {[%clk 0:02:23]}  Ra3 {[%clk 0:02:04]} 19. Bd2 {[%clk 0:02:23]}  Qd7 {[%clk 0:01:01]} 20. bxc5 {[%clk 0:02:18]}  bxc5 {[%clk 0:01:00]} 21. Qc1 {[%clk 0:02:15]}  Rb3 {[%clk 0:00:52]} 22. Rxb3 {[%clk 0:02:01]}  Nxb3 {[%clk 0:00:52]} 23. Qc2 {[%clk 0:01:59]}  Nxd2 {[%clk 0:00:51]} 24. Qxd2 {[%clk 0:02:00]}  c4 {[%clk 0:00:47]} 25. Rb1 {[%clk 0:01:54]}  cxd3 {[%clk 0:00:44]} 26. Qxd3 {[%clk 0:01:49]}  Qxd3 {[%clk 0:00:43]} 27. exd3 {[%clk 0:01:50]}  Rd8 {[%clk 0:00:41]} 28. Bf1 {[%clk 0:00:58]}  f5 {[%clk 0:00:38]} 29. Rb7 {[%clk 0:00:56]}  e4 {[%clk 0:00:33]} 30. Nb5 {[%clk 0:00:40]}  exd3 {[%clk 0:00:29]} 31. Bxd3 {[%clk 0:00:06]}  Rxd3 {[%clk 0:00:26]} 32. Nc7 {[%clk 0:00:06]}  Rd1+ {[%clk 0:00:23]} 33. Kg2 {[%clk 0:00:05]}  Bd5+ {[%clk 0:00:23]} 34. Nxd5 {[%clk 0:00:05]}  Rxd5 {[%clk 0:00:24]} 35. h4 {[%clk 0:00:06]}  Rd2 {[%clk 0:00:20]} 36. Kf3 {[%clk 0:00:02]}  Bd4 {[%clk 0:00:19]} 37. g4 {[%clk 0:00:02]}  Rxf2+ {[%clk 0:00:18]} 38. Kg3 {[%clk 0:00:02]}  f4+ {[%clk 0:00:17]} 39. Kh3 {[%clk 0:00:03]}  Be3 {[%clk 0:00:17]} 40. h5 {[%clk 0:00:02]}  gxh5 {[%clk 0:00:17]} 41. g5 {[%clk 0:00:02]}  Rf3+ {[%clk 0:00:16]} 42. Kh4 {[%clk 0:00:03]}  Rf1 {[%clk 0:00:13]} 43. Kxh5 {[%clk 0:00:03]}  f3 {[%clk 0:00:10]} 44. g6 {[%clk 0:00:02]}  Rh1+ {[%clk 0:00:09]} 45. Kg4 {[%clk 0:00:02]}  Rg1+ {[%clk 0:00:09]} 46. Kxf3 {[%clk 0:00:02]}  Rxg6 {[%clk 0:00:06]} 47. Kxe3 {[%clk 0:00:01]}  Rg7 {[%clk 0:00:04]} 48. Rb6 {[%clk 0:00:01]}  h5 {[%clk 0:00:01]} 49. Kf4 {[%clk 0:00:02]}  Kh7 {[%clk 0:00:01]} 50. Rb5 {[%clk 0:00:01]}  Kh6 {[%clk 0:00:01]} 51. Rb6+ {[%clk 0:00:02]}  Rg6 {[%clk 0:00:01]} 52. Rb8 {[%clk 0:00:02]}  Rg7 {[%clk 0:00:01]} 53. Rb6+ {[%clk 0:00:02]}  Rg6 {[%clk 0:00:02]} 54. Rb8 {[%clk 0:00:02]}  Kh7 {[%clk 0:00:02]} 55. Rb7+ {[%clk 0:00:03]}  Kh6 {[%clk 0:00:02]} 56. Rb8 {[%clk 0:00:03]} 1/2-1/2